Cogmind - Beta 15 @@@ ROGUE MODE // 2025.05.07 @ 21:24:34 Player: User15V Result: Destroyed by AH-Z29(j) with Overtuned Pulse Rifle Performance ------------- Evolutions (1) 500 Regions Visited (5) 1000 Robots Destroyed (47) 235 Value Destroyed (1394) 1394 Prototype IDs (19) 380 Alien Tech Used (0) 0 Bonus (1001) 1001 TOTAL SCORE: 4510 Bonus ------- Follower Combat Kills 324 Registered with UFD 300 Met Optimus in HQ 500 Friendly Fire -123 Cogmind --------- Core Integrity 0/400 Matter 290/300 Energy 100/100 System Corruption 1% Temperature Cool (12) Movement Core (50) Location -9/Scraptown Parts ------- > --- POWER (1) -------- (None) > --- PROPULSION (3) --- (None) > --- UTILITY (3) ------ (None) > --- WEAPON (2) ------- (None) > --- INVENTORY (5) ---- Graviton Reactor Large Storage Unit Deep Structural Scanner Heavy EM Pulse Gun Improved EM Shotgun Peak State ------------ > --- POWER ------------ Cooled Ion Engine > --- PROPULSION ------- Wheel Wheel > --- UTILITY ---------- Medium Storage Unit Rocket Booster Spectral Analyzer > --- WEAPON ----------- Barrage Gun Helical Railgun > --- INVENTORY -------- Cooling System Large Storage Unit Deep Structural Scanner Heavy EM Pulse Gun Improved EM Shotgun Light EM Pulse Cannon Heavy Machine Gun [Rating: 32] Favorites ----------- Power Cooled Ion Engine Engine Cooled Ion Engine Reactor Graviton Reactor Propulsion Light Treads Treads Light Treads Leg Aluminum Leg Wheel Wheel Utility Large Storage Unit Device Structural Scanner Storage Large Storage Unit Processor Visual Processing Unit Protection Medium Armor Plating Weapon Heavy Assault Rifle Energy Gun Improved EM Shotgun Energy Cannon Light EM Pulse Cannon Ballistic Gun Heavy Assault Rifle Ballistic Cannon Improved Light Cannon Slashing Weapon Ripteeth Build | -11 -10 -9 -9 -9 -9 ------- Run | Yrd Mat Mat Sto Rec Scr Slots Evolved 2 | . . 2 . . . Power . | . . . . . . Propulsion 1 | . . 1 . . . Utility 1 | . . 1 . . . Weapon . | . . . . . . Parts Attached 58 | 8 4 5 19 1 21 Power 7 | 1 1 . 3 . 2 Engine 6 | 1 1 . 3 . 1 Core . | . . . . . . Reactor 1 | . . . . . 1 Propulsion 16 | 4 2 1 6 . 3 Treads 3 | . . . 3 . . Leg 5 | 2 . . 3 . . Wheel 8 | 2 2 1 . . 3 Hover . | . . . . . . Flight . | . . . . . . Utility 14 | 1 1 2 2 . 8 Device 4 | . 1 . . . 3 Storage 3 | 1 . 1 . . 1 Processor 4 | . . 1 . . 3 Hackware . | . . . . . . Protection 3 | . . . 2 . 1 Artifact . | . . . . . . Weapon 21 | 2 . 2 8 1 8 Energy Gun 3 | . . . 2 1 . Energy Cannon 1 | . . . . . 1 Ballistic Gun 13 | 2 . 2 5 . 4 Ballistic Cannon 2 | . . . 1 . 1 Launcher . | . . . . . . Special Weapon . | . . . . . . Impact Weapon . | . . . . . . Slashing Weapon 2 | . . . . . 2 Piercing Weapon . | . . . . . . Special Melee Weapon . | . . . . . . Unidentified Prototypes 8 | . . . 4 . 4 Parts Lost 16 | . 1 . 8 . 7 Power 1 | . . . 1 . . Propulsion 8 | . 1 . 4 . 3 Utility 3 | . . . 2 . 1 Weapon 4 | . . . 1 . 3 Highest Loss Streak 7 | . 1 . 2 . 7 To Critical Strikes . | . . . . . . Average Backups 13 | 3 6 10 14 14 12 Power 1 | . 1 1 . 2 1 Propulsion 2 | 1 3 3 2 2 1 Utility 4 | . . 2 4 5 3 Weapon 4 | . . 4 6 4 4 Tool/Special . | . . . . . . Unused Backups 18 | . 1 1 5 . 11 Power 1 | . . . 1 . . Propulsion 4 | . 1 . 2 . 1 Utility 7 | . . . 1 . 6 Weapon 5 | . . 1 1 . 3 Tool/Special 1 | . . . . . 1 Average Slot Usage (%) 97 | . 95 99 97 100 96 Engine 10 | . 14 11 9 11 11 Treads 18 | . . . 10 33 21 Leg 4 | . . . 18 . . Wheel 7 | . 27 32 2 . 8 Device 2 | . 10 11 1 . 2 Storage 11 | . 14 11 11 11 11 Processor 12 | . . 11 11 11 16 Protection 5 | . . . 9 11 2 Energy Gun 7 | . . . 2 11 9 Ballistic Gun 14 | . 28 22 19 11 11 Peak Build Rating 32 | 6 7 14 19 18 32 Average Rating 17 | 2 6 11 15 18 21 On Entrance 10 | . 6 7 14 18 18 Naked Turns 2 | . . . . . 2 Heaviest Build 41 | 13 14 32 41 41 41 Greatest Support 60 | 20 20 30 60 60 60 Greatest Overweight (x) 3 | . . 1 3 . 2 Average Overweight (x) . | . . . . . . Largest Inventory Capacity 15 | 8 8 15 15 15 15 Average Capacity 14 | 6 8 14 15 15 14 Most Carried 15 | 5 8 15 15 15 15 Average Carried 13 | 2 6 11 14 14 13 Final Capacity 15 | 8 8 15 15 15 5 Final Carried 15 | 3 8 15 14 15 5 Class Distribution -------------------- 71% | Commander-Mutant 24% | Mutant 3% | Scavenger-Mutant Dominant Class ---------------- Mutant | -10/Materials Mutant | -9/Materials Mutant | -9/Storage Commander-Mutant | -9/Recycling Commander-Mutant | -9/Scraptown Resources | -11 -10 -9 -9 -9 -9 ----------- Run | Yrd Mat Mat Sto Rec Scr Matter Collected 1630 | 206 178 59 662 72 453 Remotely . | . . . . . . Salvage Created 1893 | . 328 59 959 262 285 Parts 111 | . 23 3 54 13 18 Haulers Intercepted . | . . . . . . Recyclers Shooed 1 | . 1 . . . . Parts Field Recycled . | . . . . . . Retrieved Matter . | . . . . . . Parts Self-Destructed . | . . . . . . Prevented . | . . . . . . Kills | -11 -10 -9 -9 -9 -9 ------- Run | Yrd Mat Mat Sto Rec Scr Combat Hostiles Destroyed 39 | . 8 1 20 3 7 Guns 38 | . 8 1 20 2 7 AOE 1 | . . . . 1 . Classes Destroyed 14 | . 3 1 2 3 5 Builder 2 | . . . 1 1 . Recycler 2 | . . . 2 . . Watcher 3 | . 3 . . . . Swarmer 9 | . 3 . 6 . . Grunt 14 | . 5 . 8 1 . Brawler 1 | . . . . 1 . Duelist 1 | . . . . 1 . Sentry 7 | . . 1 6 . . Programmer 1 | . . . . 1 . Federalist 2 | . . . . . 2 Explorer 1 | . . . . . 1 Ranger 1 | . . . . . 1 Guru 2 | . . . . . 2 Scrapper 1 | . . . . . 1 Best Kill Streak 6 | . 5 1 6 2 4 Combat Bots Only 5 | . 5 1 4 2 4 Max Kills in Single Turn 2 | . 1 1 2 2 1 Gunslinging 1 | . . . 1 . . Exploded 1 | . . . . 1 . Melee . | . . . . . . Uniques/NPCs Destroyed . | . . . . . . Combat | -11 -10 -9 -9 -9 -9 -------- Run | Yrd Mat Mat Sto Rec Scr Hostile Shots Fired 252 | . 24 8 122 9 89 Missed 74 | . 8 2 30 3 31 Hits 178 | . 16 6 92 6 58 Melee 1 | . . . . 1 . Projectile 177 | . 16 6 92 5 58 Critical Strikes 2 | . . . . . 2 Damage Taken 2502 | . 175 70 1113 188 956 Core 413 | . 11 . 185 22 195 Absorbed by Shields . | . . . . . . Redirected to Shielding 39 | . . . . . 39 Core Remaining (%) 97 | 100 95 . . . . Volleys Fired 159 | . 23 2 83 10 41 Largest 2 | . 2 2 2 2 2 Hottest 84 | . 40 40 68 68 84 Shots Fired 295 | . 46 4 153 20 72 Gun 263 | . 46 4 141 20 52 Cannon 32 | . . . 12 . 20 Launcher . | . . . . . . Special . | . . . . . . Kinetic 281 | . 46 4 151 10 70 Thermal . | . . . . . . Explosive . | . . . . . . Electromagnetic 14 | . . . 2 10 2 Robot Hit Streak 10 | . 8 2 10 6 5 Robot Miss Streak 5 | . 3 1 5 4 5 Penetration Max . | . . . . . . Secondary Targets 5 | . 2 . 3 . . Max Gunslinging Chain 1 | . 1 . 1 . . Shots Hit Robots 174 | . 31 3 92 12 36 Core Hits 81 | . 19 2 36 10 14 Critical Kills 1 | . . . . . 1 Critical Parts Destroyed 1 | . . . 1 . . Critical Strikes 2 | . . . 1 . 1 Destroy 2 | . . . 1 . 1 Melee Attacks . | . . . . . . Impact . | . . . . . . Slashing . | . . . . . . Piercing . | . . . . . . Sneak Attacks . | . . . . . . Combat Hostiles . | . . . . . . Follow-up Attacks . | . . . . . . Damage Inflicted 2868 | . 349 37 1477 290 715 Guns 2580 | . 349 37 1477 177 540 Cannons 175 | . . . . . 175 Explosions 113 | . . . . 113 . Melee . | . . . . . . Ramming . | . . . . . . Kinetic 2601 | . 349 37 1431 69 715 Thermal 113 | . . . . 113 . Explosive . | . . . . . . Electromagnetic 154 | . . . 46 108 . Impact . | . . . . . . Slashing . | . . . . . . Piercing . | . . . . . . Highest Corruption 4 | . . . 2 4 1 Average Corruption 3 | . . . 2 3 1 Corruption Purged . | . . . . . . Corruption Blocked . | . . . . . . Effects 22 | . . . . 21 1 Message Errors 8 | . . . . 8 . Matter Fused 4 | . . . . 4 . Heat Flow Errors 5 | . . . . 4 1 Energy Discharges 2 | . . . . 2 . Data Loss (minor) 2 | . . . . 2 . Data Loss (major) 1 | . . . . 1 . Overload Shots . | . . . . . . Overflow Damage 15 | . . . . . 15 Projectiles 15 | . . . . . 15 Explosions . | . . . . . . Melee . | . . . . . . Knockbacks . | . . . . . . Impact . | . . . . . . Kinetic . | . . . . . . Secondary . | . . . . . . Self-Inflicted Damage 44 | . . . . 44 . Shots 1 | . . . . 1 . Rammed . | . . . . . . Targets Rammed . | . . . . . . Kicked . | . . . . . . Crushed . | . . . . . . Highest Temperature 275 | . 9 . 7 265 275 Average Temperature 48 | . 6 . 2 78 49 Received Heat Transfer 917 | . 78 18 309 18 494 Effects 2 | . . . . 1 1 Energy Bleed 2 | . . . . 1 1 Siege Activations . | . . . . . . Martial Activations . | . . . . . . Shielding Activations . | . . . . . . Robots Disrupted . | . . . . . . Combat Hostiles . | . . . . . . Robots Corrupted . | . . . . . . Combat Hostiles . | . . . . . . Parts Fried . | . . . . . . Impact Corruptions . | . . . . . . Robots Melted . | . . . . . . Combat Hostiles . | . . . . . . Parts Melted . | . . . . . . Heat Transferred 200 | . . . . 200 . Parts Sabotaged . | . . . . . . Parts Stolen . | . . . . . . Parts Stripped . | . . . . . . Power Chain Reactions 1 | . . . . 1 . Alert | -11 -10 -9 -9 -9 -9 ------- Run | Yrd Mat Mat Sto Rec Scr Maximum Alert Level 1 | . . . 1 . . Low Security (%) 91 | 100 100 100 81 100 . Level 1 8 | . . . 18 . . Level 2 . | . . . . . . Level 3 . | . . . . . . Level 4 . | . . . . . . Level 5 . | . . . . . . High Security . | . . . . . . Max Security . | . . . . . . Peak Influence 235 | . 158 68 235 142 . Initial 75 | . . 48 . 75 . Average 85 | . 71 38 142 33 . Influence Increases 1393 | . 256 49 797 291 . Destroy 0b10 Robot/C 840 | . 160 20 520 140 . Destroy 0b10 Robot/NC 45 | . 15 . 15 15 . Destroy Leader 186 | . 46 10 130 . . Allied During Kill 158 | . . . 72 86 . Successful Hack 54 | . 4 19 12 19 . Disable Machine 45 | . . . 30 15 . Destroy Structure 20 | . 1 . 3 16 . Partial Spotted 30 | . 30 . . . . Lose Combat Pursuer 15 | . . . 15 . . Influence Decreases 1393 | . 141 164 602 486 . Entered New Map 187 | . . 67 . 120 . Time Decay 1013 | . 131 59 462 361 . Lost Part 90 | . 10 . 80 . . Lost Ally 60 | . . . 60 . . Purge Threat 43 | . . 38 . 5 . Squads Dispatched 7 | . 2 . 5 . . Investigation 1 | . 1 . . . . Extermination . | . . . . . . Reinforcement 3 | . 1 . 2 . . Assault . | . . . . . . Garrison 3 | . . . 3 . . Intercept . | . . . . . . Searches Triggered . | . . . . . . Construction Impeded . | . . . . . . Haulers Reinforced . | . . . . . . Active Scanning Responses . | . . . . . . Cargo Convoy Interrupts . | . . . . . . Stealth | -11 -10 -9 -9 -9 -9 --------- Run | Yrd Mat Mat Sto Rec Scr Distress Signals 1 | . 1 . . . . Communications Jammed . | . . . . . . Distress Signals . | . . . . . . Times Spotted 82 | . 12 6 33 6 25 Peak Tracking Total 7 | . 7 5 4 2 7 Tactical Retreats 1 | . . . 1 . . Traps | -11 -10 -9 -9 -9 -9 ------- Run | Yrd Mat Mat Sto Rec Scr Traps Triggered 6 | . 2 . 4 . . Indirectly . | . . . . . . Trap Hack Attempts . | . . . . . . Triggered . | . . . . . . Disarmed . | . . . . . . Reprogrammed . | . . . . . . Reused . | . . . . . . Traps Extracted . | . . . . . . Installed . | . . . . . . Triggered . | . . . . . . Machines | -11 -10 -9 -9 -9 -9 ---------- Run | Yrd Mat Mat Sto Rec Scr Machines Disabled 9 | . . . 2 1 6 Max in Single Turn 1 | . . . 1 . 1 Machines Repaired . | . . . . . . Machines Dismantled . | . . . . . . Machines Sabotaged . | . . . . . . Overloaded Fab Kills . | . . . . . . Hacking | -11 -10 -9 -9 -9 -9 --------- Run | Yrd Mat Mat Sto Rec Scr Machines Accessed 21 | . 1 2 8 7 3 Terminals 16 | . 1 2 7 6 . Fabricators . | . . . . . . Repair Stations . | . . . . . . Recycling Units . | . . . . . . Scanalyzers . | . . . . . . Garrison Access 1 | . . . 1 . . Total Hacks 79 | . 6 8 21 21 23 Successful 52 | . 4 5 7 13 23 Failed 27 | . 2 3 14 8 . Catastrophic 3 | . . 1 . 2 . Database Lockouts . | . . . . . . Manual 28 | . 6 7 13 2 . Terminals 48 | . 6 8 19 15 . Fabricators . | . . . . . . Repair Stations . | . . . . . . Recycling Units . | . . . . . . Scanalyzers . | . . . . . . Garrison Access 2 | . . . 2 . . Terminal Hacks 41 | . . 2 4 12 23 Record 28 | . . . . 5 23 Prototype ID Bank 1 | . . . . 1 . Open Door 1 | . . . 1 . . Level Access Points 1 | . . . 1 . . Branch Access Points 2 | . . 1 . 1 . Emergency Access Points 1 | . . . 1 . . Alert Level 2 | . . . 1 1 . Unreport Threat 3 | . . 1 . 2 . Zone Layout 1 | . . . . 1 . Release Object 1 | . . . . 1 . Fabricator Hacks . | . . . . . . Repair Station Hacks . | . . . . . . Recycling Unit Hacks . | . . . . . . Scanalyzer . | . . . . . . Garrison Access Hacks . | . . . . . . Unauthorized Hacks 11 | . 4 3 3 1 . Terminals 11 | . 4 3 3 1 . Track 1 | . 1 . . . . Botnet 7 | . 1 2 3 1 . Operators 1 | . 1 . . . . Skim 2 | . 1 1 . . . Fabricators . | . . . . . . Repair Stations . | . . . . . . Recycling Units . | . . . . . . Scanalyzers . | . . . . . . Garrison Access . | . . . . . . Data Cores Recovered . | . . . . . . Used . | . . . . . . Hacking Detections 16 | . 1 2 8 5 . Full Trace Events . | . . . . . . Feedback Events . | . . . . . . Feedback Blocked . | . . . . . . Robot Schematics Acquired . | . . . . . . Robots Built . | . . . . . . Authchips . | . . . . . . Time . | . . . . . . Total Robot Build Rating . | . . . . . . Part Schematics Acquired . | . . . . . . Parts Built . | . . . . . . Authchips . | . . . . . . Time . | . . . . . . Total Part Build Rating . | . . . . . . Parts Repaired . | . . . . . . Time . | . . . . . . Parts Recycled . | . . . . . . Recycled Matter . | . . . . . . Retrieved Matter . | . . . . . . Retrieved Components . | . . . . . . Parts Scanalyzed . | . . . . . . Part Schematics Acquired . | . . . . . . Parts Damaged . | . . . . . . Bothacking | -11 -10 -9 -9 -9 -9 ------------ Run | Yrd Mat Mat Sto Rec Scr Used RIF Installer . | . . . . . . Robots Hacked . | . . . . . . Non-combat . | . . . . . . Combat . | . . . . . . Robot Hacks Applied . | . . . . . . Relay Couplers Released . | . . . . . . Fabnet Peak Effective % . | . . . . . . Robots Rewired 17 | . . . . 17 . Allies Hacked . | . . . . . . Hacks Repelled . | . . . . . . Allies | -11 -10 -9 -9 -9 -9 -------- Run | Yrd Mat Mat Sto Rec Scr Total Allies 27 | . . . 10 17 . Largest Group 20 | . . . 10 20 19 Highest-Rated Group 303 | . . . 88 303 295 Highest-Rated Ally 34 | . . . 16 34 34 Total Orders 3 | . . . . . 3 ROAM 3 | . . . . . 3 Ally Attacks 138 | . . . 51 47 40 Total Damage 2053 | . . . 402 678 973 Kills 17 | . . . 6 4 7 Allies Corrupted 1 | . . . 1 . . Allies Melted 3 | . . . . . 3 Intel | -11 -10 -9 -9 -9 -9 ------- Run | Yrd Mat Mat Sto Rec Scr Active Infowar (turns) 5116 | . 288 122 1240 1068 2398 Optics 4828 | . . 122 1240 1068 2398 Structural 930 | . 288 122 170 . 350 Robot Analysis Total . | . . . . . . Derelict Logs Recovered . | . . . . . . Drone Launches . | . . . . . . Drone Recoveries . | . . . . . . Exploration | -11 -10 -9 -9 -9 -9 ------------- Run | Yrd Mat Mat Sto Rec Scr Turns Passed 5267 | 58 379 122 1240 1068 2400 Spaces Moved 3337 | 59 347 110 522 547 1752 Core 34 | 33 . . . . 1 Treads 1689 | . . . 195 547 947 Legs 294 | 8 . . 286 . . Wheels 1320 | 18 347 110 41 . 804 Hover . | . . . . . . Flight . | . . . . . . Fastest Speed 45 | 50 80 80 95 160 45 Average Speed 131 | 68 80 86 171 160 125 Slowest Speed 190 | 120 80 95 190 160 160 Overloaded Moves . | . . . . . . Propulsion Burnouts . | . . . . . . Robots Hopped . | . . . . . . Potential Cave-ins . | . . . . . . Cave-ins Triggered . | . . . . . . Exploration Rate (%) 55 | 4 58 16 75 97 85 Regions Visited 5 Branch Regions 3 Pre-discovered Areas 4 | . . . 1 . 3 Known Exits Taken 1 | . . 1 . . . Unknown Exits Taken 4 | 1 1 . 1 1 . Scrap Searched 4 | . . . . . 4 Spaces Dug . | . . . . . . Terrain Destroyed 4 | . . . . 3 1 Melee . | . . . . . . Projectile 1 | . . . . . 1 AOE 3 | . . . . 3 . Terrain Rammed . | . . . . . . Walls Destroyed . | . . . . . . Machines Disabled . | . . . . . . Actions | -11 -10 -9 -9 -9 -9 --------- Run | Yrd Mat Mat Sto Rec Scr Total 3943 | 75 410 133 721 719 1885 Wait 89 | . 22 . 34 14 19 Move 3332 | 58 346 109 521 546 1752 Hop . | . . . . . . Pick Up 82 | 9 12 13 24 2 22 Fast Attach . | . . . . . . Attach 32 | 6 4 2 11 . 9 Detach . | . . . . . . Swap 33 | 2 . 3 10 2 16 Drop 51 | . 3 4 17 1 26 Fire 159 | . 23 2 83 10 41 Melee . | . . . . . . Ram . | . . . . . . Kick . | . . . . . . Crush . | . . . . . . Escape Stasis 21 | . . . 21 . . Rewire 144 | . . . . 144 . Trap . | . . . . . . Miscellaneous . | . . . . . . Route ------- -11/Scrapyard -10/Materials (discovered 4 exits: *Mat / [*Min x2] / [Sub]) -9/Materials (discovered 3 exits: Min / *Sto x2) -9/Storage (discovered 2 exits: Mat / *Rec) -9/Recycling (discovered 2 exits: [*Fac] / *Scr) -9/Scraptown (discovered 2 exits: *Fac x2) History --------- Turn | Location | Event 4 | -11/Scrapyard | Discovered new exit (range 16) 59 | -11/Scrapyard | Entered Materials 219 | -10/Materials | Discovered new exit (range 10) 326 | -10/Materials | Discovered new exit (range 15) 343 | -10/Materials | Build established: Mutant 366 | -10/Materials | Discovered new exit (range 6) 427 | -10/Materials | Discovered new exit (range 10) 438 | -10/Materials | Entered another Materials area 438 | -9/Materials | Evolved 2 slots: Propulsion x1, Utility x1 533 | -9/Materials | Identified exit to Mines 533 | -9/Materials | Identified exit to Storage 560 | -9/Materials | Entered Storage 893 | -9/Storage | Garrison activated, responded to threat 1252 | -9/Storage | Assisted by bots powering up and referring to "LRC-V3" 1253 | -9/Storage | Identified exit to Materials 1505 | -9/Storage | Learned location of Armory (-4) 1556 | -9/Storage | Build established: Commander-Mutant 1768 | -9/Storage | Lost 3 allies 1790 | -9/Storage | Used back door to open Recycling access 1790 | -9/Storage | Discovered new exit (range 5) 1800 | -9/Storage | Entered Recycling 1800 | -9/Recycling | Accompanied by 6 allies 1815 | -9/Recycling | Core integrity fell below 50% 2275 | -9/Recycling | Discovered new exit (range 12) 2764 | -9/Recycling | Scanned before Scraplab entrance 2792 | -9/Recycling | Entered Scraplab 2812 | -9/Recycling | Discovered new exit (range 3) 2868 | -9/Recycling | Entered Scraptown 2868 | -9/Scraptown | Accompanied by 19 allies 2868 | -9/Scraptown | System corruption cleaned by C-Scrubber 3043 | -9/Scraptown | Visited Comm Corps 3107 | -9/Scraptown | Visited CPS Storage 3163 | -9/Scraptown | Discovered new exit (range 7) 3490 | -9/Scraptown | Visited The Evicted 3543 | -9/Scraptown | Visited Symbiants 3592 | -9/Scraptown | Visited UFD Registry 3603 | -9/Scraptown | Visited IN-MT5's Study 3661 | -9/Scraptown | Visited Cyclists 3709 | -9/Scraptown | Visited TADAMA 3783 | -9/Scraptown | Registered with UFD as "Protocycle" 3853 | -9/Scraptown | Visited Observation Area 3922 | -9/Scraptown | Visited Curators Association 4108 | -9/Scraptown | Found Scrap Suit 4164 | -9/Scraptown | Visited Cartography Club 4465 | -9/Scraptown | Learned location of Mines (-9) 4465 | -9/Scraptown | Learned location of Storage (-9) 4465 | -9/Scraptown | Learned 12 Materials zone layouts 4465 | -9/Scraptown | Learned 12 Factory zone layouts 4465 | -9/Scraptown | Learned 24 Factory zone layouts 4465 | -9/Scraptown | Learned 8 Research zone layouts 4465 | -9/Scraptown | Learned 12 Research zone layouts 4465 | -9/Scraptown | Learned 4 Storage zone layouts 4465 | -9/Scraptown | Learned 16 Lower Caves zone layouts 4465 | -9/Scraptown | Learned 24 Upper Caves zone layouts 4465 | -9/Scraptown | Learned 16 Proximity Caves zone layouts 4465 | -9/Scraptown | Learned location of 3 exits from Factory 4465 | -9/Scraptown | Learned location of 3 exits from Lower Caves 4465 | -9/Scraptown | Identified exit to Factory 4465 | -9/Scraptown | Learned 4 Armory zone layouts 4568 | -9/Scraptown | Found Deep Structural Scanner 4778 | -9/Scraptown | Visited Infowarlord's Domain 4784 | -9/Scraptown | Found Spectral Analyzer 4829 | -9/Scraptown | Met Optimus 4829 | -9/Scraptown | Accepted into 0bPrime 4873 | -9/Scraptown | Visited Botcube Research 4912 | -9/Scraptown | Visited Abandonware Association 4922 | -9/Scraptown | Learned abandonware demo "REPAIR.EXE" 4979 | -9/Scraptown | Civil war broke out across Scraptown 5163 | -9/Scraptown | Optimus destroyed in the chaos of civil war 5219 | -9/Scraptown | Visited Science Testing Area 5226 | -9/Scraptown | Lost 3 allies 5259 | -9/Scraptown | Core integrity fell below 20% 5266 | -9/Scraptown | Released all parts (4) 5268 | -9/Scraptown | Destroyed by AH-Z29(j) with Overtuned Pulse Rifle Last Messages --------------- 05262_ T7-BU3(j) overheating. 05263_ AH-Z29(j) heat spikes uncontrollably. 05263_ AH-Z29(j) overheating. 05264_ T7-BU3(j) overheating. 05264_ Acquired Prototype Device. 05264_ Bolt penetrates SN-0HS(E). 05264_ Wheel destroyed. 05264_ T7-BU3(j) overheating. 05265_ Identified Prc. Matter Filter. 05265_ T7-BU3(j) overheating. 05266_ Released Graviton Reactor. 05266_ Released Spectral Analyzer. 05266_ Released Med. Storage Unit. 05266_ Released Prc. Matter Filter. 05266_ Dropped Rocket Booster. 05266_ SN-0HS(E) destroyed. 05266_ T7-BU3(j) overheating. 05267_ Acquired Graviton Reactor. 05267_ T7-BU3(j) overheating. 05268_ T7-BU3(j) heat spikes uncontrollably. Map ----- +----------------------------------------------------+ | #??# #?????######## ########### #### | | ########## ##########????######## ########### #### | | #????####"""" """"""""""" """" | | #????####" | | #???#####" | | #???#####" % | | #???##### ! * | | ########### #???##### | | ??????????" *[ #???#""" """""""""""""" | | ??????????" !%! #???#"""!! """"""""""""""" | | ??????????# =!! #???#"""%! %*% "###### ##### | | ###########! [ #???#""""* [ ""# | | #"""""""" #%= #???#"" ""# ! X | | #" """ # ! ###?#""" """ %*"" | | #" " # ""#"#""" ""#[!!"!%= "" X | | #" # """"#""" ""#!%*! ! " | | #"" # ""####### *! !%""=!=[* " | | #" =! #* =%!###??#### %! ""%*==! " =% | | #" """""*%#![ =jj#########"=! ""#[%![ " | | ##"# "==%!! p !%!%!= ""#!="" " " | | ???# #%= j =[=* j ""#!!!"" "" | | ???#######=%!g= [% [ = ""# X | | ?????????#%!j!%* & %! ""# | | ######"#=#%[!! TT % ""###### ##### | | =![%=%/[! TT [!== """"""""""""" " | | =!=%==!* *=!@[! """"* """ """= | | = =[!=%!*[ !!=*!=! g % !% ! | | !% =%%!!![=%* !%!=%!! [=[=%[ *=== ! | | = !%![=[ [=! !%!=! =%*==%= ![%[! [= | | [%! * * % #""""# /*[!!%!*= =%!*%! =% | | !!%=!% % #?"""# [!%=*!= = = [ ! | | !%! % #?"""#" !"|% "" "%! | | ###"####### ### ####?"""######;!###########!## | | #??# # #????"""### *% ##=[ | | #??#" "# #?????????# ## %* | | #??#"" ""# #?????????# = ##=!""""" | | #??#"" ""# #?????????# !% ## "###" | | #??#"" ""# #?????????# * ## "#X#" | | #??#"" ""# #?????????# = ## "# #" | | #??#"" " " ""# #?????????# %= ## | | #??#""""""X"""""# #?????????" ! ## " " " | | #??#""""""""""""# #????????#""##########"""""""" | | #??############## #???????? ??????############ | | #???????????????# #???????# #??????############ | | ?????????????????? #???????## ??################# | | ??????????????????? #????????##??################# | | ??????????????????? #???????????? ##"""##"""##""" | | ??????????????????? #????????????" ## ""## ""## " | | ??????????????????? #????????????" | | ????????????????????#????????????" ! | +----------------------------------------------------+ Best States ------------- Heat Dissipation 28 Energy Generation 14 Energy Capacity 280 Matter Stores 300 Matter Capacity 300 Sight Range 24 Terrain Scan Density 10 Armor Coverage 225 Evasion (%) 51 Targeting Accuracy 5 Recoil Reduction 3 Item Schematics ----------------- None Robot Schematics ------------------ None Fabricated ------------ Nothing Repaired ---------- Nothing Alien Tech Used ----------------- None Achievements -------------- None Challenges ------------ None Game ------ Seed EtherialBackupMallet Manual? 0 Play Time 00:55:58 Cumulative 313.8 hours Start 2025.05.07 @ 20:26:55 End 2025.05.07 @ 21:24:34 Sessions 1 Manual Loads 0 Difficulty Rogue Special Mode None Game No. 189 Rogue 102 Adventurer 87 Explorer 0 Win Type - Total 20 Types 13/3/0/4/0/0/0/0/0/0 Lore% 73 Gallery% 77 Achievement% 75 Wizard Run 0 Options --------- Layout 1 ASCII 0 Keyboard 0 Movement Mouse Keybinds 0 Fullscreen 2 Font 24/Terminus Map View 50x35 Zoom Use 0% Tactical HUD 1 Map Filters NONE Filters NONE Steam 1 RUN: 4a887c06-493d-4c99-98bc-cbb6691eab45